[Event "*** Titled Tuesday Blitz"]
[Site "Chess.com"]
[Date "2020.11.24"]
[Round "1"]
[White "kot60"]
[Black "Andreikka"]
[Result "0-1"]
[WhiteElo "2442"]
[BlackElo "2898"]
[TimeControl "180+1"]
[EndTime "10:22:06 PST"]
[Termination "Andreikka won on time"]

1. e4 {[%clk 0:03:00.9]} 1... e5 {[%clk 0:02:54.5]} 2. Nc3 {[%clk 0:03:00.2]}
2... Nc6 {[%clk 0:02:51.9]} 3. f4 {[%clk 0:02:59.8]} 3... Bc5 {[%clk 0:02:39.8]}
4. fxe5 {[%clk 0:02:56.5]} 4... Bxg1 {[%clk 0:02:28.3]} 5. Rxg1 {[%clk
0:02:55.3]} 5... Nxe5 {[%clk 0:02:27.1]} 6. d4 {[%clk 0:02:46]} 6... Ng6 {[%clk
0:02:25.2]} 7. g3 {[%clk 0:02:44.5]} 7... d6 {[%clk 0:02:24.8]} 8. Bg2 {[%clk
0:02:42.5]} 8... Nf6 {[%clk 0:02:24.2]} 9. Rf1 {[%clk 0:02:26.3]} 9... h6 {[%clk
0:02:22.9]} 10. Be3 {[%clk 0:02:21.1]} 10... Ng4 {[%clk 0:02:21.2]} 11. Bg1
{[%clk 0:02:20.7]} 11... c6 {[%clk 0:02:11.2]} 12. Qd2 {[%clk 0:02:13.6]} 12...
Qe7 {[%clk 0:02:10]} 13. O-O-O {[%clk 0:02:06.7]} 13... Be6 {[%clk 0:02:04.1]}
14. h3 {[%clk 0:01:58.8]} 14... Nf6 {[%clk 0:02:03.7]} 15. d5 {[%clk 0:01:55.9]}
15... cxd5 {[%clk 0:02:02.9]} 16. exd5 {[%clk 0:01:54.2]} 16... Bd7 {[%clk
0:02:03]} 17. Rde1 {[%clk 0:01:40.6]} 17... Ne5 {[%clk 0:02:01.3]} 18. Bd4
{[%clk 0:01:37.7]} 18... O-O {[%clk 0:02:00.7]} 19. g4 {[%clk 0:01:32.4]} 19...
Rfe8 {[%clk 0:01:52.2]} 20. Kb1 {[%clk 0:01:04]} 20... Qd8 {[%clk 0:01:32.2]}
21. Qf2 {[%clk 0:01:01.7]} 21... Qa5 {[%clk 0:01:25.1]} 22. Ne4 {[%clk
0:00:49.6]} 22... Nxe4 {[%clk 0:01:16.5]} 23. Bxe4 {[%clk 0:00:48.4]} 23... f6
{[%clk 0:01:16.2]} 24. Bc3 {[%clk 0:00:35.4]} 24... Qb5 {[%clk 0:01:15]} 25. Qe2
{[%clk 0:00:30.9]} 25... Qxe2 {[%clk 0:01:13.2]} 26. Rxe2 {[%clk 0:00:30.7]}
26... Bb5 {[%clk 0:01:14.1]} 27. Ref2 {[%clk 0:00:20.3]} 27... Bxf1 {[%clk
0:01:06.6]} 28. Rxf1 {[%clk 0:00:21.2]} 28... Nc4 {[%clk 0:00:56.3]} 29. Bd3
{[%clk 0:00:18]} 29... Ne3 {[%clk 0:00:54.9]} 30. Rg1 {[%clk 0:00:17.5]} 30...
Rac8 {[%clk 0:00:49.6]} 31. Bb4 {[%clk 0:00:15.3]} 31... Red8 {[%clk 0:00:39.8]}
32. Re1 {[%clk 0:00:07.4]} 32... Nxd5 {[%clk 0:00:38.7]} 33. Ba3 {[%clk
0:00:04.8]} 33... Nf4 {[%clk 0:00:36.6]} 34. Bf5 {[%clk 0:00:04.2]} 34... Rc7
{[%clk 0:00:36.9]} 35. b3 {[%clk 0:00:03.1]} 35... Nxh3 {[%clk 0:00:35]} 36. Re6
{[%clk 0:00:01.2]} 36... Ng5 {[%clk 0:00:26.1]} 0-1

[Event "*** Titled Tuesday Blitz"]
[Site "Chess.com"]
[Date "2020.11.24"]
[Round "1"]
[White "JozefKneht"]
[Black "vovachesss"]
[Result "1/2-1/2"]
[WhiteElo "2362"]
[BlackElo "2662"]
[TimeControl "180+1"]
[EndTime "10:22:06 PST"]
[Termination "Game drawn by repetition"]

1. d4 {[%clk 0:02:58.3]} 1... Nf6 {[%clk 0:02:59.4]} 2. c4 {[%clk 0:02:57.7]}
2... c6 {[%clk 0:02:59.5]} 3. Nf3 {[%clk 0:02:55.8]} 3... d5 {[%clk 0:02:59.8]}
4. Nc3 {[%clk 0:02:56.4]} 4... dxc4 {[%clk 0:02:59.8]} 5. a4 {[%clk 0:02:55]}
5... Bg4 {[%clk 0:02:58.9]} 6. e3 {[%clk 0:02:52.8]} 6... Nbd7 {[%clk
0:02:58.3]} 7. Bxc4 {[%clk 0:02:52.2]} 7... e6 {[%clk 0:02:58.4]} 8. h3 {[%clk
0:02:52.1]} 8... Bxf3 {[%clk 0:02:55.5]} 9. Qxf3 {[%clk 0:02:51.4]} 9... Bd6
{[%clk 0:02:51.4]} 10. O-O {[%clk 0:02:49.9]} 10... O-O {[%clk 0:02:51.5]} 11.
Rd1 {[%clk 0:02:45.8]} 11... e5 {[%clk 0:02:50.7]} 12. d5 {[%clk 0:02:36]} 12...
Qe7 {[%clk 0:02:31.3]} 13. e4 {[%clk 0:02:29.5]} 13... h6 {[%clk 0:02:24.4]} 14.
a5 {[%clk 0:02:28.4]} 14... Rfd8 {[%clk 0:01:47.1]} 15. a6 {[%clk 0:02:23.1]}
15... b5 {[%clk 0:01:37.2]} 16. Ba2 {[%clk 0:02:09]} 16... b4 {[%clk 0:01:21.5]}
17. dxc6 {[%clk 0:02:07.5]} 17... bxc3 {[%clk 0:01:21.3]} 18. cxd7 {[%clk
0:02:07.6]} 18... cxb2 {[%clk 0:01:19.7]} 19. Bxb2 {[%clk 0:02:07.5]} 19... Rxd7
{[%clk 0:01:20]} 20. Bd5 {[%clk 0:02:00.1]} 20... Rad8 {[%clk 0:01:18.6]} 21.
Bb7 {[%clk 0:01:53.3]} 21... Bc5 {[%clk 0:01:17.1]} 22. Bc3 {[%clk 0:01:44.3]}
22... Bxf2+ {[%clk 0:00:49.9]} 23. Kxf2 {[%clk 0:01:33.6]} 23... Rxd1 {[%clk
0:00:49.8]} 24. Rxd1 {[%clk 0:01:31.4]} 24... Rxd1 {[%clk 0:00:50.7]} 25. Qxd1
{[%clk 0:01:10.9]} 25... Qc5+ {[%clk 0:00:50.9]} 26. Kf1 {[%clk 0:01:09.2]}
26... Qxc3 {[%clk 0:00:51.1]} 27. Qe2 {[%clk 0:00:50]} 27... g6 {[%clk
0:00:49.2]} 28. Kg1 {[%clk 0:00:49.8]} 28... Nh5 {[%clk 0:00:48.3]} 29. Kh2
{[%clk 0:00:49.3]} 29... Qg3+ {[%clk 0:00:47.2]} 30. Kh1 {[%clk 0:00:48.1]}
30... Nf4 {[%clk 0:00:47.4]} 31. Qd2 {[%clk 0:00:47.8]} 31... Kg7 {[%clk
0:00:44.2]} 32. Qb2 {[%clk 0:00:44]} 32... Qe1+ {[%clk 0:00:44.1]} 33. Kh2
{[%clk 0:00:43.8]} 33... Ne2 {[%clk 0:00:18.5]} 34. Qxe5+ {[%clk 0:00:42.7]}
34... Kh7 {[%clk 0:00:18.1]} 35. Qc5 {[%clk 0:00:42.3]} 35... Qg3+ {[%clk
0:00:13.5]} 36. Kh1 {[%clk 0:00:42.4]} 36... Qe1+ {[%clk 0:00:10.4]} 37. Kh2
{[%clk 0:00:42.5]} 37... Qg3+ {[%clk 0:00:10.1]} 38. Kh1 {[%clk 0:00:42.5]}
38... Qf4 {[%clk 0:00:06.6]} 39. e5 {[%clk 0:00:39.9]} 39... Ng3+ {[%clk
0:00:06.5]} 40. Kg1 {[%clk 0:00:39.3]} 40... Ne2+ {[%clk 0:00:06.1]} 41. Kh1
{[%clk 0:00:38.4]} 41... Qf1+ {[%clk 0:00:06.1]} 42. Kh2 {[%clk 0:00:38.5]}
42... Qf4+ {[%clk 0:00:06]} 43. Kh1 {[%clk 0:00:38.4]} 1/2-1/2

[Event "*** Titled Tuesday Blitz"]
[Site "Chess.com"]
[Date "2020.11.24"]
[Round "1"]
[White "Skat2704"]
[Black "Vuk2000"]
[Result "0-1"]
[WhiteElo "2393"]
[BlackElo "2754"]
[TimeControl "180+1"]
[EndTime "10:22:10 PST"]
[Termination "Vuk2000 won by resignation"]

1. d4 {[%clk 0:03:00.9]} 1... Nf6 {[%clk 0:02:58.7]} 2. c4 {[%clk 0:03:00.7]}
2... e6 {[%clk 0:02:58.6]} 3. Nf3 {[%clk 0:03:00.5]} 3... b6 {[%clk 0:02:58.3]}
4. g3 {[%clk 0:02:59.9]} 4... Ba6 {[%clk 0:02:58.3]} 5. Qc2 {[%clk 0:02:58.4]}
5... Bb7 {[%clk 0:02:57.5]} 6. Bg2 {[%clk 0:02:58.2]} 6... c5 {[%clk 0:02:56.5]}
7. O-O {[%clk 0:02:57.2]} 7... cxd4 {[%clk 0:02:55.6]} 8. Nxd4 {[%clk
0:02:56.4]} 8... Bxg2 {[%clk 0:02:55.4]} 9. Kxg2 {[%clk 0:02:56.6]} 9... Be7
{[%clk 0:02:54.6]} 10. Rd1 {[%clk 0:02:55.6]} 10... O-O {[%clk 0:02:53.9]} 11.
Nc3 {[%clk 0:02:55.3]} 11... Qc8 {[%clk 0:02:46]} 12. e4 {[%clk 0:02:51.8]}
12... Qxc4 {[%clk 0:02:27.1]} 13. Be3 {[%clk 0:02:32.3]} 13... Nc6 {[%clk
0:02:10.1]} 14. b3 {[%clk 0:02:23.1]} 14... Nxd4 {[%clk 0:02:01.6]} 15. Rxd4
{[%clk 0:02:22.1]} 15... Qc6 {[%clk 0:02:01.3]} 16. Rc4 {[%clk 0:02:17]} 16...
Qb7 {[%clk 0:01:58.2]} 17. Kg1 {[%clk 0:02:10.8]} 17... Rac8 {[%clk 0:01:54.8]}
18. Rd1 {[%clk 0:01:58.4]} 18... Rxc4 {[%clk 0:01:07.5]} 19. bxc4 {[%clk
0:01:58]} 19... Rc8 {[%clk 0:01:06.8]} 20. Qd3 {[%clk 0:01:55.3]} 20... d6
{[%clk 0:00:58.4]} 21. Bg5 {[%clk 0:01:53.2]} 21... a6 {[%clk 0:00:51.1]} 22.
Bf4 {[%clk 0:01:42.7]} 22... h6 {[%clk 0:00:43.6]} 23. Bxd6 {[%clk 0:01:37.6]}
23... Bxd6 {[%clk 0:00:35.8]} 24. Qxd6 {[%clk 0:01:36.9]} 24... Rxc4 {[%clk
0:00:36.4]} 25. Qd8+ {[%clk 0:01:31.7]} 25... Kh7 {[%clk 0:00:35.8]} 26. e5
{[%clk 0:01:30.6]} 26... Ne4 {[%clk 0:00:21.9]} 27. Rd7 {[%clk 0:01:24.6]} 27...
Qc6 {[%clk 0:00:16.4]} 28. Nxe4 {[%clk 0:01:09.7]} 28... Qxe4 {[%clk 0:00:17.3]}
29. Rd1 {[%clk 0:01:04]} 29... b5 {[%clk 0:00:17.1]} 30. Qe7 {[%clk 0:00:54.1]}
30... Qf3 {[%clk 0:00:15.6]} 31. Re1 {[%clk 0:00:49.9]} 31... Rc2 {[%clk
0:00:15]} 32. Qa7 {[%clk 0:00:47.7]} 32... Rxa2 {[%clk 0:00:14.3]} 33. Rc1
{[%clk 0:00:43.8]} 33... b4 {[%clk 0:00:14]} 34. Qd4 {[%clk 0:00:42.7]} 34... b3
{[%clk 0:00:12.7]} 35. Rc7 {[%clk 0:00:37.7]} 35... b2 {[%clk 0:00:09.4]} 0-1

[Event "*** Titled Tuesday Blitz"]
[Site "Chess.com"]
[Date "2020.11.24"]
[Round "1"]
[White "smshk35"]
[Black "GukeshDommaraju"]
[Result "1-0"]
[WhiteElo "2463"]
[BlackElo "2891"]
[TimeControl "180+1"]
[EndTime "10:22:11 PST"]
[Termination "smshk35 won by checkmate"]

1. e4 {[%clk 0:03:00.9]} 1... c6 {[%clk 0:02:59.8]} 2. d4 {[%clk 0:03:00.5]}
2... d5 {[%clk 0:02:59.9]} 3. e5 {[%clk 0:03:00.8]} 3... Bf5 {[%clk 0:02:59.8]}
4. h4 {[%clk 0:03:00.8]} 4... h5 {[%clk 0:02:59.5]} 5. Bg5 {[%clk 0:03:00.4]}
5... Qb6 {[%clk 0:02:56.7]} 6. Bd3 {[%clk 0:03:00.1]} 6... Bxd3 {[%clk
0:02:46.3]} 7. Qxd3 {[%clk 0:02:59.3]} 7... Qxb2 {[%clk 0:02:45.7]} 8. e6 {[%clk
0:02:36]} 8... Qxa1 {[%clk 0:02:24.4]} 9. Qb3 {[%clk 0:02:34.5]} 9... Qxd4
{[%clk 0:01:25.4]} 10. Qxb7 {[%clk 0:01:40.7]} 10... fxe6 {[%clk 0:00:53]} 11.
Be3 {[%clk 0:01:20.4]} 11... Qa4 {[%clk 0:00:23.6]} 12. Qxa8 {[%clk 0:00:59.5]}
12... Qb4+ {[%clk 0:00:23.6]} 13. Nd2 {[%clk 0:00:58.7]} 13... Nf6 {[%clk
0:00:21.3]} 14. Bxa7 {[%clk 0:00:55.8]} 14... Nd7 {[%clk 0:00:17.3]} 15. Nf3
{[%clk 0:00:45.1]} 15... Qb5 {[%clk 0:00:10.4]} 16. Nd4 {[%clk 0:00:32.7]} 16...
Qa6 {[%clk 0:00:10.6]} 17. Nxe6 {[%clk 0:00:30.8]} 17... Kf7 {[%clk 0:00:11]}
18. Nc7 {[%clk 0:00:22]} 18... Qc8 {[%clk 0:00:11.3]} 19. Bxb8 {[%clk
0:00:20.5]} 19... Nxb8 {[%clk 0:00:11.3]} 20. Qa7 {[%clk 0:00:17.8]} 20... Nd7
{[%clk 0:00:08.3]} 21. Nf3 {[%clk 0:00:17.9]} 21... e5 {[%clk 0:00:06]} 22. Ng5+
{[%clk 0:00:18.1]} 22... Kg6 {[%clk 0:00:06]} 23. Nce6 {[%clk 0:00:18]} 23...
Bd6 {[%clk 0:00:05.7]} 24. O-O {[%clk 0:00:17.8]} 24... Rg8 {[%clk 0:00:03.7]}
25. f4 {[%clk 0:00:17.9]} 25... exf4 {[%clk 0:00:03.6]} 26. Qd4 {[%clk
0:00:14.2]} 26... Nf6 {[%clk 0:00:03.9]} 27. Qd3+ {[%clk 0:00:13.6]} 27... Kh6
{[%clk 0:00:03.9]} 28. Rxf4 {[%clk 0:00:10.7]} 28... Rf8 {[%clk 0:00:02.7]} 29.
Rxf6+ {[%clk 0:00:08.8]} 29... Rxf6 {[%clk 0:00:02.1]} 30. Qh7# {[%clk
0:00:08.9]} 1-0

[Event "*** Titled Tuesday Blitz"]
[Site "Chess.com"]
[Date "2020.11.24"]
[Round "1"]
[White "GMKrikor"]
[Black "anon481216"]
[Result "1/2-1/2"]
[WhiteElo "2740"]
[BlackElo "2396"]
[TimeControl "180+1"]
[EndTime "10:22:11 PST"]
[Termination "Game drawn by repetition"]

1. e4 {[%clk 0:02:55.7]} 1... c5 {[%clk 0:02:58.3]} 2. Nf3 {[%clk 0:02:52.6]}
2... Nf6 {[%clk 0:02:58.5]} 3. Nc3 {[%clk 0:02:46.4]} 3... d5 {[%clk 0:02:56.5]}
4. exd5 {[%clk 0:02:40.8]} 4... Nxd5 {[%clk 0:02:55.7]} 5. Ne5 {[%clk
0:02:41.4]} 5... e6 {[%clk 0:02:47]} 6. Bb5+ {[%clk 0:02:39.7]} 6... Nd7 {[%clk
0:02:42.5]} 7. Nxd5 {[%clk 0:02:29]} 7... exd5 {[%clk 0:02:42]} 8. Qf3 {[%clk
0:02:25.6]} 8... Qe7 {[%clk 0:02:22.6]} 9. Qxd5 {[%clk 0:02:01.4]} 9... a6
{[%clk 0:02:22.2]} 10. Bxd7+ {[%clk 0:01:33.3]} 10... Bxd7 {[%clk 0:02:21.8]}
11. Qxd7+ {[%clk 0:01:32.9]} 11... Qxd7 {[%clk 0:02:21.3]} 12. Nxd7 {[%clk
0:01:33.8]} 12... Kxd7 {[%clk 0:02:21.3]} 13. d3 {[%clk 0:01:27.7]} 13... Bd6
{[%clk 0:02:20.9]} 14. Be3 {[%clk 0:01:11.9]} 14... Rhe8 {[%clk 0:02:18.8]} 15.
Kd2 {[%clk 0:00:59.6]} 15... f5 {[%clk 0:02:17.6]} 16. g3 {[%clk 0:00:58.7]}
16... Kc6 {[%clk 0:02:16.7]} 17. Rhe1 {[%clk 0:00:57.2]} 17... b6 {[%clk
0:02:14]} 18. Re2 {[%clk 0:00:55.7]} 18... Re7 {[%clk 0:02:13.2]} 19. Rae1
{[%clk 0:00:49.4]} 19... Rae8 {[%clk 0:02:12.5]} 20. Bg5 {[%clk 0:00:49]} 20...
Rxe2+ {[%clk 0:02:12.1]} 21. Rxe2 {[%clk 0:00:49.9]} 21... Rxe2+ {[%clk
0:02:11.9]} 22. Kxe2 {[%clk 0:00:50.4]} 22... Be5 {[%clk 0:02:11.8]} 23. b3
{[%clk 0:00:44.4]} 23... g6 {[%clk 0:02:11.6]} 24. Kd2 {[%clk 0:00:41.8]} 24...
b5 {[%clk 0:02:09.6]} 25. Be3 {[%clk 0:00:41.2]} 25... Kd5 {[%clk 0:02:08.6]}
26. c4+ {[%clk 0:00:37.6]} 26... Kc6 {[%clk 0:02:05.4]} 27. Ke2 {[%clk
0:00:37.5]} 27... Bf6 {[%clk 0:01:58.7]} 28. Kf3 {[%clk 0:00:37]} 28... Be5
{[%clk 0:01:58.5]} 29. h3 {[%clk 0:00:37.1]} 29... h5 {[%clk 0:01:53.2]} 30. g4
{[%clk 0:00:36.7]} 30... hxg4+ {[%clk 0:01:45.7]} 31. hxg4 {[%clk 0:00:37.6]}
31... Bd6 {[%clk 0:01:16.6]} 32. Bf4 {[%clk 0:00:35.1]} 32... Be7 {[%clk
0:01:16.3]} 33. Kg3 {[%clk 0:00:27.2]} 33... Kd7 {[%clk 0:01:15.8]} 34. gxf5
{[%clk 0:00:21.7]} 34... gxf5 {[%clk 0:01:15.6]} 35. Be3 {[%clk 0:00:22.3]}
35... Ke6 {[%clk 0:01:08.3]} 36. Kf4 {[%clk 0:00:20.7]} 36... Bd6+ {[%clk
0:01:07.3]} 37. Kf3 {[%clk 0:00:17.4]} 37... Be7 {[%clk 0:01:05.9]} 38. Bf4
{[%clk 0:00:16.1]} 38... Bf6 {[%clk 0:01:05.4]} 39. Be3 {[%clk 0:00:16.3]} 39...
Be7 {[%clk 0:01:05.2]} 40. Kf4 {[%clk 0:00:14.4]} 40... Bd6+ {[%clk 0:01:04.9]}
41. Kg5 {[%clk 0:00:15.1]} 41... Be7+ {[%clk 0:01:04.8]} 42. Kg6 {[%clk
0:00:15.2]} 42... Bd6 {[%clk 0:01:04.9]} 43. f3 {[%clk 0:00:12.4]} 43... Be7
{[%clk 0:01:04.9]} 44. d4 {[%clk 0:00:10.9]} 44... cxd4 {[%clk 0:01:04.5]} 45.
Bxd4 {[%clk 0:00:11.5]} 45... bxc4 {[%clk 0:01:02.9]} 46. bxc4 {[%clk
0:00:11.9]} 46... Bb4 {[%clk 0:01:01.5]} 47. Be3 {[%clk 0:00:08.2]} 47... Be7
{[%clk 0:00:59.6]} 48. Bd4 {[%clk 0:00:03.1]} 48... Bb4 {[%clk 0:00:56.6]} 49.
Kg5 {[%clk 0:00:03.5]} 49... Bd2+ {[%clk 0:00:56.1]} 50. Kg6 {[%clk 0:00:03.3]}
50... Bb4 {[%clk 0:00:56]} 1/2-1/2

[Event "*** Titled Tuesday Blitz"]
[Site "Chess.com"]
[Date "2020.11.24"]
[Round "1"]
[White "QuintilianoR"]
[Black "Andrii_Prydun"]
[Result "1-0"]
[WhiteElo "2666"]
[BlackElo "2346"]
[TimeControl "180+1"]
[EndTime "10:22:12 PST"]
[Termination "QuintilianoR won on time"]

1. Nf3 {[%clk 0:03:00.9]} 1... d5 {[%clk 0:02:58.5]} 2. d4 {[%clk 0:02:59.6]}
2... Nf6 {[%clk 0:02:59.4]} 3. c4 {[%clk 0:02:59.7]} 3... c6 {[%clk 0:02:59.4]}
4. e3 {[%clk 0:02:59.1]} 4... e6 {[%clk 0:02:58.5]} 5. Bd3 {[%clk 0:02:58]} 5...
Nbd7 {[%clk 0:02:57.8]} 6. b3 {[%clk 0:02:58]} 6... Bb4+ {[%clk 0:02:57]} 7.
Nbd2 {[%clk 0:02:57.3]} 7... Qe7 {[%clk 0:02:53.5]} 8. O-O {[%clk 0:02:56.2]}
8... O-O {[%clk 0:02:52.4]} 9. Bb2 {[%clk 0:02:55.5]} 9... Ba3 {[%clk
0:02:50.9]} 10. Bxa3 {[%clk 0:02:53.1]} 10... Qxa3 {[%clk 0:02:51.3]} 11. Qc2
{[%clk 0:02:54]} 11... Qe7 {[%clk 0:02:46.6]} 12. e4 {[%clk 0:02:53.9]} 12...
dxe4 {[%clk 0:02:45.9]} 13. Nxe4 {[%clk 0:02:54.8]} 13... e5 {[%clk 0:02:45.1]}
14. Rfe1 {[%clk 0:02:51.5]} 14... exd4 {[%clk 0:02:40]} 15. Neg5 {[%clk
0:02:33.1]} 15... Qd6 {[%clk 0:02:29.5]} 16. Bxh7+ {[%clk 0:02:10.5]} 16... Kh8
{[%clk 0:02:29.2]} 17. Rad1 {[%clk 0:02:10.9]} 17... c5 {[%clk 0:02:25.7]} 18.
Bf5 {[%clk 0:02:01.3]} 18... b6 {[%clk 0:01:05.1]} 19. Be4 {[%clk 0:00:56.1]}
19... Rb8 {[%clk 0:01:02.2]} 20. Bd5 {[%clk 0:00:55.6]} 20... Bb7 {[%clk
0:00:56.3]} 21. Nxf7+ {[%clk 0:00:46.2]} 21... Rxf7 {[%clk 0:00:55.5]} 22. Bxf7
{[%clk 0:00:47.1]} 22... Bxf3 {[%clk 0:00:55]} 23. gxf3 {[%clk 0:00:47.4]} 23...
Ne5 {[%clk 0:00:54.8]} 24. Qf5 {[%clk 0:00:38]} 24... Nxf7 {[%clk 0:00:51.7]}
25. Re6 {[%clk 0:00:38.5]} 25... Qd8 {[%clk 0:00:35.8]} 26. Kh1 {[%clk
0:00:38.5]} 26... Rb7 {[%clk 0:00:29.9]} 27. Rg1 {[%clk 0:00:38]} 27... Nh6
{[%clk 0:00:07.3]} 28. Qf4 {[%clk 0:00:36.4]} 28... Rf7 {[%clk 0:00:05.1]} 29.
Qg5 {[%clk 0:00:36.1]} 29... Qd7 {[%clk 0:00:03.5]} 30. Rge1 {[%clk 0:00:32]}
30... Qb7 {[%clk 0:00:03.2]} 31. Qg2 {[%clk 0:00:23.7]} 31... Nh5 {[%clk
0:00:03.1]} 32. Re8+ {[%clk 0:00:23.3]} 32... Kh7 {[%clk 0:00:03.5]} 33. R8e4
{[%clk 0:00:21.7]} 33... Nf6 {[%clk 0:00:02.5]} 34. Rf4 {[%clk 0:00:20.8]} 34...
Nh5 {[%clk 0:00:02.4]} 35. Rh4 {[%clk 0:00:19.8]} 1-0

[Event "*** Titled Tuesday Blitz"]
[Site "Chess.com"]
[Date "2020.11.24"]
[Round "1"]
[White "RestartingChess"]
[Black "Sueetin"]
[Result "1-0"]
[WhiteElo "2561"]
[BlackElo "2264"]
[TimeControl "180+1"]
[EndTime "10:22:14 PST"]
[Termination "RestartingChess won on time"]

1. e4 {[%clk 0:03:00.9]} 1... c5 {[%clk 0:02:59.5]} 2. Nf3 {[%clk 0:03:01.1]}
2... e6 {[%clk 0:02:59.3]} 3. b3 {[%clk 0:03:00.7]} 3... Nc6 {[%clk 0:02:54.9]}
4. Bb2 {[%clk 0:03:00.8]} 4... Nge7 {[%clk 0:02:46.4]} 5. Be2 {[%clk 0:02:57.6]}
5... d6 {[%clk 0:02:41.7]} 6. O-O {[%clk 0:02:54.9]} 6... e5 {[%clk 0:02:41.6]}
7. c3 {[%clk 0:02:54.7]} 7... g6 {[%clk 0:02:38.1]} 8. d4 {[%clk 0:02:54.9]}
8... cxd4 {[%clk 0:02:33.4]} 9. cxd4 {[%clk 0:02:55.3]} 9... Bg7 {[%clk
0:02:34]} 10. dxe5 {[%clk 0:02:52.2]} 10... dxe5 {[%clk 0:02:32.5]} 11. Qxd8+
{[%clk 0:02:52.1]} 11... Kxd8 {[%clk 0:02:33.1]} 12. Rd1+ {[%clk 0:02:50.9]}
12... Ke8 {[%clk 0:02:31.1]} 13. Nc3 {[%clk 0:02:50.8]} 13... f6 {[%clk
0:02:24.1]} 14. Nb5 {[%clk 0:02:41]} 14... Rb8 {[%clk 0:01:58.9]} 15. Nc7+
{[%clk 0:02:35.2]} 15... Kf8 {[%clk 0:01:56.4]} 16. Ba3 {[%clk 0:02:31.9]} 16...
Bh6 {[%clk 0:01:36.5]} 17. Nd5 {[%clk 0:01:58.6]} 17... Kf7 {[%clk 0:01:22.1]}
18. Bc4 {[%clk 0:01:57]} 18... Be6 {[%clk 0:01:22]} 19. Nxe7 {[%clk 0:01:43]}
19... Nxe7 {[%clk 0:01:21.4]} 20. Bxe6+ {[%clk 0:01:43.2]} 20... Kxe6 {[%clk
0:01:21.3]} 21. Rd6+ {[%clk 0:01:43.9]} 21... Kf7 {[%clk 0:01:20]} 22. Rd7
{[%clk 0:01:44.5]} 22... Rhe8 {[%clk 0:01:18.5]} 23. Rad1 {[%clk 0:01:43.3]}
23... Bf8 {[%clk 0:01:04.3]} 24. Nd2 {[%clk 0:01:38.5]} 24... Red8 {[%clk
0:00:45.3]} 25. Nc4 {[%clk 0:01:37.6]} 25... Rxd7 {[%clk 0:00:45.1]} 26. Rxd7
{[%clk 0:01:37.8]} 26... Ke8 {[%clk 0:00:41.8]} 27. Rc7 {[%clk 0:01:22.5]} 27...
Kd8 {[%clk 0:00:27.6]} 28. Bd6 {[%clk 0:01:22.3]} 28... Nc8 {[%clk 0:00:19.3]}
29. Rd7+ {[%clk 0:00:50.2]} 29... Kxd7 {[%clk 0:00:18.6]} 30. Bxb8 {[%clk
0:00:51.1]} 30... Bc5 {[%clk 0:00:12.7]} 31. Kf1 {[%clk 0:00:50.6]} 31... a6
{[%clk 0:00:09.2]} 32. f4 {[%clk 0:00:50.8]} 32... Nd6 {[%clk 0:00:07.5]} 33.
fxe5 {[%clk 0:00:48.7]} 33... Nxe4 {[%clk 0:00:04.4]} 34. exf6 {[%clk
0:00:44.4]} 34... Nxf6 {[%clk 0:00:05.1]} 35. Be5 {[%clk 0:00:41.7]} 35... Ke6
{[%clk 0:00:04.4]} 36. Bxf6 {[%clk 0:00:38.8]} 36... Kxf6 {[%clk 0:00:04.1]} 37.
Ke2 {[%clk 0:00:39.4]} 37... Kf5 {[%clk 0:00:01.6]} 38. Kf3 {[%clk 0:00:38.9]}
38... g5 {[%clk 0:00:01.8]} 39. g4+ {[%clk 0:00:38.7]} 39... Ke6 {[%clk
0:00:01.5]} 40. Ke4 {[%clk 0:00:39.2]} 40... h6 {[%clk 0:00:01.6]} 41. h3 {[%clk
0:00:39.8]} 41... Be7 {[%clk 0:00:01.4]} 42. Ne5 {[%clk 0:00:39.3]} 42... Bf6
{[%clk 0:00:01.3]} 43. Nd3 {[%clk 0:00:39.9]} 43... Be7 {[%clk 0:00:01.4]} 44.
Nb2 {[%clk 0:00:39.5]} 44... Bd6 {[%clk 0:00:01.4]} 45. Nc4 {[%clk 0:00:39.6]}
45... Bc7 {[%clk 0:00:02.1]} 46. Ne3 {[%clk 0:00:40]} 46... Bd8 {[%clk 0:00:02]}
47. Nf5 {[%clk 0:00:40.2]} 1-0

[Event "*** Titled Tuesday Blitz"]
[Site "Chess.com"]
[Date "2020.11.24"]
[Round "1"]
[White "MIJuanReyesRosa"]
[Black "FLamps8"]
[Result "1-0"]
[WhiteElo "2071"]
[BlackElo "2472"]
[TimeControl "180+1"]
[EndTime "10:22:14 PST"]
[Termination "MIJuanReyesRosa won by checkmate"]

1. d4 {[%clk 0:02:57.9]} 1... d5 {[%clk 0:02:59.6]} 2. c4 {[%clk 0:02:57.7]}
2... e6 {[%clk 0:02:58.8]} 3. Nc3 {[%clk 0:02:57.8]} 3... c6 {[%clk 0:02:54]} 4.
e3 {[%clk 0:02:52.6]} 4... Bd6 {[%clk 0:02:53.4]} 5. Bd3 {[%clk 0:02:47.9]} 5...
f5 {[%clk 0:02:52.2]} 6. Nge2 {[%clk 0:02:47.5]} 6... Nf6 {[%clk 0:02:51.9]} 7.
Qc2 {[%clk 0:02:38.5]} 7... O-O {[%clk 0:02:47.7]} 8. Bd2 {[%clk 0:02:27.4]}
8... Ne4 {[%clk 0:02:43.9]} 9. O-O {[%clk 0:02:18.3]} 9... Rf6 {[%clk
0:02:36.4]} 10. Bxe4 {[%clk 0:01:23.6]} 10... fxe4 {[%clk 0:02:22.8]} 11. f3
{[%clk 0:01:02.6]} 11... exf3 {[%clk 0:02:18.3]} 12. Rxf3 {[%clk 0:01:01.3]}
12... Rxf3 {[%clk 0:02:18.1]} 13. gxf3 {[%clk 0:01:01]} 13... e5 {[%clk
0:02:06.6]} 14. Ng3 {[%clk 0:00:50.3]} 14... exd4 {[%clk 0:02:02]} 15. exd4
{[%clk 0:00:49.4]} 15... Qh4 {[%clk 0:02:00.5]} 16. Nce2 {[%clk 0:00:45.2]}
16... Be6 {[%clk 0:01:54.8]} 17. cxd5 {[%clk 0:00:39.6]} 17... Bxd5 {[%clk
0:01:55.7]} 18. Qf5 {[%clk 0:00:39.7]} 18... Qd8 {[%clk 0:01:07.7]} 19. Bg5
{[%clk 0:00:35.3]} 19... Qc7 {[%clk 0:00:59.5]} 20. Nf4 {[%clk 0:00:30.5]} 20...
Bf7 {[%clk 0:00:26.4]} 21. Ne6 {[%clk 0:00:23.7]} 21... Qd7 {[%clk 0:00:20.6]}
22. Nxg7 {[%clk 0:00:17.9]} 22... Bxg3 {[%clk 0:00:08.6]} 23. hxg3 {[%clk
0:00:12.6]} 23... Kxg7 {[%clk 0:00:05.5]} 24. Qf6+ {[%clk 0:00:11.1]} 24... Kg8
{[%clk 0:00:05.9]} 25. Bh6 {[%clk 0:00:10.6]} 25... Bg6 {[%clk 0:00:04.5]} 26.
Re1 {[%clk 0:00:07.6]} 26... Qf7 {[%clk 0:00:04.4]} 27. Qd8+ {[%clk 0:00:06.6]}
27... Qe8 {[%clk 0:00:04.6]} 28. Rxe8+ {[%clk 0:00:05.8]} 28... Kf7 {[%clk
0:00:04.3]} 29. Qe7# {[%clk 0:00:05]} 1-0